Cogmind - Beta 10.2 @@@ ROGUE MODE // 2021.01.18 @ 20:51:53 Player: cavemonk Result: Destroyed by D-53 Grenadier with Mini Grenade Launcher Performance ------------- Evolutions (0) 0 Regions Visited (2) 400 Robots Destroyed (12) 60 Value Destroyed (362) 362 Prototype IDs (0) 0 Alien Tech Used (0) 0 Bonus (0) 0 TOTAL SCORE: 822 Bonus ------- None Cogmind --------- Core Integrity 0/250 Matter 140/300 Energy 89/100 System Corruption 5% Temperature Cool (0) Movement Rolling (90) Ox1 Location -10/Mines Parts ------- > --- POWER (1) -------- (None) > --- PROPULSION (2) --- Wheel > --- UTILITY (2) ------ Large Storage Unit Targeting Computer > --- WEAPON (2) ------- (None) > --- INVENTORY (10) --- Ion Engine Improved Heat Sink Medium Storage Unit Large Storage Unit High-capacity Matter Pod (31) EM Pulse Gun Peak State ------------ > --- POWER ------------ Ion Engine > --- PROPULSION ------- Light Treads Light Treads > --- UTILITY ---------- Improved Terrain Scanner Targeting Computer > --- WEAPON ----------- Small Laser Assault Rifle > --- INVENTORY -------- Ion Engine Light Treads Light Treads Wheel [Rating: 8] Favorites ----------- Power Ion Engine Engine Ion Engine Propulsion Light Treads Treads Light Treads Wheel Wheel Utility Targeting Computer Device Improved Terrain Scanner Storage Large Storage Unit Processor Targeting Computer Weapon Assault Rifle Energy Gun Medium Laser Ballistic Gun Assault Rifle Launcher Grenade Launcher Build | -11 -10 -10 ------- Run | Scr Mat Min Slots Evolved . | . . . Power . | . . . Propulsion . | . . . Utility . | . . . Weapon . | . . . Parts Attached 17 | 5 9 3 Power 1 | 1 . . Engine 1 | 1 . . Core . | . . . Reactor . | . . . Propulsion 6 | 1 2 3 Treads 4 | . 2 2 Leg . | . . . Wheel 2 | 1 . 1 Hover . | . . . Flight . | . . . Utility 5 | 1 4 . Device 2 | 1 1 . Storage 2 | . 2 . Processor 1 | . 1 . Hackware . | . . . Protection . | . . . Artifact . | . . . Weapon 5 | 2 3 . Energy Gun 3 | 2 1 . Energy Cannon . | . . . Ballistic Gun 1 | . 1 . Ballistic Cannon . | . . . Launcher 1 | . 1 . Special Weapon . | . . . Impact Weapon . | . . . Slashing Weapon . | . . . Piercing Weapon . | . . . Special Melee Weapon . | . . . Unidentified Prototypes . | . . . Parts Lost 10 | . 3 7 Power 1 | . . 1 Propulsion 4 | . . 4 Utility . | . . . Weapon 5 | . 3 2 Highest Loss Streak 4 | . 2 4 Average Slot Usage (%) 85 | . 88 79 Engine 12 | . 14 6 Treads 25 | . 27 21 Device 5 | . 7 . Storage 8 | . 6 14 Processor 9 | . 7 14 Energy Gun 4 | . 6 . Ballistic Gun 10 | . 10 7 Launcher 8 | . 6 13 Naked Turns . | . . . Heaviest Build 26 | 10 26 26 Greatest Support 40 | 10 40 40 Greatest Overweight (x) 2 | 2 . 1 Average Overweight (x) . | . . . Largest Inventory Capacity 10 | 4 10 10 Average Capacity 6 | 4 5 10 Most Carried 9 | 4 8 9 Average Carried 5 | 2 5 8 Final Capacity 10 | 4 10 10 Final Carried 8 | 4 8 6 Class Distribution -------------------- 100% | Mutant Dominant Class ---------------- Mutant | -10/Materials Mutant | -10/Mines Resources | -11 -10 -10 ----------- Run | Scr Mat Min Matter Collected 441 | 250 165 26 Remotely . | . . . Salvage Created 536 | 118 379 39 Parts 23 | 6 17 . Haulers Intercepted . | . . . Recyclers Shooed 1 | . 1 . Parts Field Recycled . | . . . Retrieved Matter . | . . . Parts Self-Destructed . | . . . Prevented . | . . . Kills | -11 -10 -10 ------- Run | Scr Mat Min Combat Hostiles Destroyed 28 | . 9 19 Guns 8 | . 8 . AOE 19 | . . 19 Classes Destroyed 4 | 2 1 1 Tunneler 2 | 2 . . Recycler 1 | 1 . . Grunt 9 | . 9 . Assembled 19 | . . 19 Best Kill Streak 19 | 3 3 19 Combat Bots Only 19 | . 3 19 Max Kills in Single Turn 3 | 1 1 3 Gunslinging . | . . . Exploded 3 | . . 3 Melee . | . . . Uniques/NPCs Destroyed . | . . . Combat | -11 -10 -10 -------- Run | Scr Mat Min Damage Taken 1227 | . 568 659 Core 250 | . 84 166 Absorbed by Shields . | . . . Core Remaining (%) 100 | 100 . . Volleys Fired 61 | 6 40 15 Largest 2 | 2 2 1 Hottest 100 | 100 100 30 Shots Fired 89 | 12 62 15 Gun 73 | 12 61 . Cannon . | . . . Launcher 16 | . 1 15 Special . | . . . Kinetic 25 | . 25 . Thermal 48 | 12 36 . Explosive 16 | . 1 15 Electromagnetic . | . . . Robot Hit Streak 21 | 4 21 9 Robot Miss Streak 2 | 1 2 1 Penetration Max . | . . . Secondary Targets 2 | . 2 . Max Gunslinging Chain 1 | . 1 . Shots Hit Robots 69 | 8 52 9 Core Hits 60 | 4 21 35 Critical Hits 1 | . 1 . Critical Kills 1 | . 1 . Critical Parts Destroyed . | . . . Melee Attacks . | . . . Impact . | . . . Slashing . | . . . Piercing . | . . . Sneak Attacks . | . . . Combat Hostiles . | . . . Follow-up Attacks . | . . . Damage Inflicted 1963 | 101 667 1195 Guns 768 | 101 667 . Cannons . | . . . Explosions 1195 | . . 1195 Melee . | . . . Ramming . | . . . Kinetic 287 | . 287 . Thermal 481 | 101 380 . Explosive 1195 | . . 1195 Electromagnetic . | . . . Impact . | . . . Slashing . | . . . Piercing . | . . . Highest Corruption 5 | . . 5 Average Corruption 5 | . . 5 Corruption Purged . | . . . Effects 4 | . . 4 Message Errors 1 | . . 1 Matter Fused 1 | . . 1 Heat Flow Errors 1 | . . 1 Data Loss (major) 1 | . . 1 Overload Shots . | . . . Overflow Damage 50 | . . 50 Projectiles . | . . . Explosions 50 | . . 50 Melee . | . . . Knockbacks . | . . . Impact . | . . . Kinetic . | . . . Secondary . | . . . Self-Inflicted Damage 86 | . . 86 Shots 3 | . . 3 Rammed . | . . . Targets Rammed . | . . . Kicked . | . . . Crushed . | . . . Highest Temperature 290 | 195 290 244 Average Temperature 96 | 89 95 133 Received Heat Transfer 318 | . 318 . Siege Activations . | . . . Robots Corrupted . | . . . Combat Hostiles . | . . . Parts Fried . | . . . Impact Corruptions . | . . . Robots Melted 1 | . 1 . Combat Hostiles 1 | . 1 . Parts Melted 1 | . 1 . Heat Transferred 1383 | 296 1087 . Parts Sabotaged . | . . . Parts Stolen . | . . . Parts Stripped . | . . . Power Chain Reactions . | . . . Missiles Intercepted . | . . . Alert | -11 -10 -10 ------- Run | Scr Mat Min Peak Influence 196 | 15 196 . Initial 9 | . 9 . Average 42 | 6 62 . Maximum Alert Level . | . . . Low Security (%) 100 | 100 100 100 Level 1 . | . . . Level 2 . | . . . Level 3 . | . . . Level 4 . | . . . Level 5 . | . . . High Security . | . . . Max Security . | . . . Squads Dispatched 3 | . 3 . Investigation 1 | . 1 . Extermination . | . . . Reinforcement 2 | . 2 . Assault . | . . . Garrison . | . . . Intercept . | . . . Construction Impeded . | . . . Haulers Reinforced . | . . . Stealth | -11 -10 -10 --------- Run | Scr Mat Min Distress Signals 1 | . 1 . Communications Jammed . | . . . Distress Signals . | . . . Times Spotted 39 | . 19 20 Peak Tracking Total 13 | . 4 13 Tactical Retreats 1 | . 1 . Traps | -11 -10 -10 ------- Run | Scr Mat Min Traps Triggered 1 | . 1 . Indirectly . | . . . Trap Hack Attempts . | . . . Triggered . | . . . Disarmed . | . . . Reprogrammed . | . . . Reused . | . . . Traps Extracted . | . . . Installed . | . . . Triggered . | . . . Machines | -11 -10 -10 ---------- Run | Scr Mat Min Machines Disabled 1 | . 1 . Max in Single Turn 1 | . 1 . Machines Sabotaged . | . . . Garrisons Compromised . | . . . Overloaded Fab Kills . | . . . Fab Network Shutdowns . | . . . Hacking | -11 -10 -10 --------- Run | Scr Mat Min Machines Accessed 3 | . 3 . Terminals 3 | . 3 . Fabricators . | . . . Repair Stations . | . . . Recycling Units . | . . . Scanalyzers . | . . . Garrison Access . | . . . Total Hacks 10 | . 10 . Successful 6 | . 6 . Failed 4 | . 4 . Catastrophic 2 | . 2 . Database Lockouts . | . . . Manual 10 | . 10 . Terminals 10 | . 10 . Fabricators . | . . . Repair Stations . | . . . Recycling Units . | . . . Scanalyzers . | . . . Garrison Access . | . . . Terminal Hacks 2 | . 2 . Terminal Index 1 | . 1 . Zone Layout 1 | . 1 . Fabricator Hacks . | . . . Repair Station Hacks . | . . . Recycling Unit Hacks . | . . . Scanalyzer . | . . . Garrison Access Hacks . | . . . Unauthorized Hacks 4 | . 4 . Terminals 4 | . 4 . Track 2 | . 2 . Botnet 1 | . 1 . Operators 1 | . 1 . Fabricators . | . . . Repair Stations . | . . . Recycling Units . | . . . Scanalyzers . | . . . Garrison Access . | . . . Data Cores Recovered . | . . . Used . | . . . Hacking Detections 3 | . 3 . Full Trace Events . | . . . Feedback Events . | . . . Feedback Blocked . | . . . Robot Schematics Acquired . | . . . Robots Built . | . . . Matter . | . . . Time . | . . . Total Robot Build Rating . | . . . Part Schematics Acquired . | . . . Parts Built . | . . . Matter . | . . . Time . | . . . Total Part Build Rating . | . . . Parts Repaired . | . . . Time . | . . . Parts Recycled . | . . . Recycled Matter . | . . . Retrieved Matter . | . . . Retrieved Components . | . . . Parts Scanalyzed . | . . . Part Schematics Acquired . | . . . Parts Damaged . | . . . Bothacking | -11 -10 -10 ------------ Run | Scr Mat Min Used RIF Installer . | . . . Robots Hacked . | . . . Non-combat . | . . . Combat . | . . . Robot Hacks Applied . | . . . Relay Couplers Released . | . . . Robots Rewired . | . . . Allies Hacked . | . . . Hacks Repelled . | . . . Allies | -11 -10 -10 -------- Run | Scr Mat Min Total Allies . | . . . Largest Group . | . . . Highest-Rated Group . | . . . Highest-Rated Ally . | . . . Total Orders . | . . . Ally Attacks . | . . . Total Damage . | . . . Kills . | . . . Allies Corrupted . | . . . Allies Melted . | . . . Intel | -11 -10 -10 ------- Run | Scr Mat Min Robot Analysis Total . | . . . Derelict Logs Recovered 2 | . . 2 Drone Launches . | . . . Drone Recoveries . | . . . Exploration | -11 -10 -10 ------------- Run | Scr Mat Min Turns Passed 1482 | 116 1001 365 Spaces Moved 829 | 85 537 207 Core 16 | 16 . . Treads 711 | . 505 206 Legs . | . . . Wheels 102 | 69 32 1 Hover . | . . . Flight . | . . . Fastest Speed 50 | 50 80 90 Average Speed 149 | 85 155 159 Slowest Speed 180 | 150 160 180 Overloaded Moves . | . . . Propulsion Burnouts . | . . . Robots Hopped . | . . . Cave-ins Triggered . | . . . Exploration Rate (%) 39 | 4 73 42 Regions Visited 2 Branch Regions 1 Pre-discovered Areas . | . . . Known Exits Taken . | . . . Unknown Exits Taken 2 | 1 1 . Scrap Searched 1 | . . 1 Spaces Dug . | . . . Terrain Destroyed 43 | . 6 37 Melee . | . . . Projectile . | . . . AOE 43 | . 6 37 Terrain Rammed . | . . . Walls Destroyed . | . . . Machines Disabled . | . . . Actions | -11 -10 -10 --------- Run | Scr Mat Min Total 980 | 113 641 226 Wait 61 | 14 47 . Move 827 | 84 536 207 Hop . | . . . Pick Up 10 | 4 5 1 Fast Attach 12 | 5 7 . Attach 4 | . 1 3 Detach . | . . . Swap 1 | . 1 . Drop 4 | . 4 . Fire 61 | 6 40 15 Melee . | . . . Ram . | . . . Kick . | . . . Crush . | . . . Escape Stasis . | . . . Rewire . | . . . Trap . | . . . Miscellaneous . | . . . Route ------- -11/Scrapyard -10/Materials (discovered 4 exits: [*Mat x3] / [*Min]) -10/Mines History --------- Turn | Location | Event 28 | -11/Scrapyard | Discovered new exit (range 15) 117 | -11/Scrapyard | Entered Materials 300 | -10/Materials | Build established: Mutant 378 | -10/Materials | Discovered new exit (range 13) 579 | -10/Materials | Discovered new exit (range 16) 744 | -10/Materials | Discovered new exit (range 15) 969 | -10/Materials | Discovered new exit (range 5) 1118 | -10/Materials | Entered Mines 1231 | -10/Mines | Learned 2 Materials zone layouts 1248 | -10/Mines | Assembled infested the area 1268 | -10/Mines | Learned location of 1 exit from Materials 1319 | -10/Mines | Core integrity fell below 50% 1343 | -10/Mines | Destroyed 19 combat bots 1347 | -10/Mines | Lost 4 parts (1p2n1w) 1478 | -10/Mines | Core integrity fell below 20% 1483 | -10/Mines | Destroyed by D-53 Grenadier with Mini Grenade Launcher Last Messages --------------- 01322_ as-66138 destroyed. 01322_ as-27399 destroyed. 01324_ The unstable cave ceiling collapses. 01330_ System corrupted: Matter fused (-10). 01368_ System corrupted: Heat flow error (+268). 01388_ =64GU DJ|P1DECT:FHBGKN6G==J&GAMJZ BI 01458_ System corrupted: Substantial component data lost. 01470_ K-01 Serf collects debris. 01471_ U-05 Engineer lays Concrete. 01472_ C-30 ARC bursts open, deploying its payload. 01472_ D-53 Grenadier unfolds itself. 01472_ U-05 Engineer lays Concrete. 01472_ Grenade Launcher destroyed. 01474_ U-05 Engineer lays Concrete. 01476_ The unstable cave ceiling collapses. 01479_ K-01 Serf collects debris. 01480_ The unstable cave ceiling collapses. 01480_ Lgt. Treads destroyed. 01483_ The unstable cave ceiling collapses. 01483_ K-01 Serf collects debris. Map ----- +----------------------------------------------------+ | ??????????????????# ?????????????????????## #?? | | ??????????????????# ???????# ######???????## ##? | | ??????????????????? ??????# #???????## #? | | ???????????????????# ??###?###### #??????## #? | | ?????????????????### ### ###????# #??????# #? | | ?????????????????# ## #????# #???#### ##? | | ???????????# ### ###??# ##### #?? | | ??????????? #??# ######?? | | ??????????# #??####### #??????? | | ?????????? #????????# #??????? | | ?????????? ##???????# #??????? | | ??????????# ######### #??????? | | ???????????# % # #??????? | | ???????????# k# # # #??????? | | ???????????? # # ######### #??????? | | ??????????? %### #### #???????# #??????? | | ???????????? "% ## #### #???????# #??????? | | ???????????????# dd ## #???????# #??????? | | ????????????????# # #???????# #??????? | | ????????????????## ## #######?# #??????? | | ?????????????????### # #?# #??????? | | ???????????????????## # #?# #??????? | | ????????????????????# ###### ### ##?????? | | ????????????????????## # ##????# ##????? | | ????????????????????# #?????# ####?? | | ????????????????????# @ #?##### """ ##? | | ????????????????????## ### ## """ #? | | ?????????????????????# ## """ #? | | ?????????????????????## # #### #? | | ??????????????????????#### #??## #? | | ?????????????????????????# ##### ## #? | | ?????????????????????????# ###### #? | | ?????????????????????????# ##????? #? | | ?????????????????????????## #??????# ##? | | ??????????????????????#### ##???###?###?? | | ???????????????????#### #???# ##????? | | ??????????????????## ##?# ##???? | | ??????????????????# ## #???? | | ??????????????????# #???? | | ??????????????????## #????? | | ???????????????????### ##????? | | ?????????????????????## ## ##?????? | | ??????????????????????# #### ##??????? | | ??????????????????????# #??###### ##???????? | | ?????????????????????# ##???????## ##???????? | | ????????????????????# ###????????## #???????? | | ???????????????????# ##?????????## #???????? | | ???????????????????# #???????????# ##???????? | | ???????????????????###????????????# ####????????? | | ??????????????????????????????????# ##???????????? | +----------------------------------------------------+ Best States ------------- Heat Dissipation 39 Energy Generation 10 Energy Capacity 250 Matter Stores 300 Matter Capacity 300 Sight Range 16 Terrain Scan Range 16 Terrain Scan Density 10 Evasion (%) 44 Targeting Accuracy 5 Recoil Reduction 2 Item Schematics ----------------- None Robot Schematics ------------------ None Fabricated ------------ Nothing Alien Tech Used ----------------- None Achievements -------------- None Challenges ------------ None Game ------ Seed VariableSwordTorch Manual? 0 Play Time 00:15:03 Cumulative 136.5 hours Start 2021.01.18 @ 20:30:03 End 2021.01.18 @ 20:51:53 Sessions 1 Manual Loads 0 Difficulty Rogue Special Mode None Game No. 88 Rogue 88 Adventurer 0 Explorer 0 Win Type - Total 3 Types 3/0/0/0/0/0/0/0/0 Lore% 34 Gallery% 57 Achievement% 44 Wizard Run 0 Options --------- ASCII 0 Keyboard 0 Movement Mouse Keybinds 0 Fullscreen 2 Font 18/TerminusBold Map View 76x50 Tactical HUD 1 Map Filters NONE Filters NONE Steam 1 RUN: d0a19f17-868e-4924-a17d-73ea6178d6be